fUST/lending_fUST_20250602
["ID","MTS","AMOUNT","RATE_DAILY","PERIOD"]
[363767013,1748866244689,-500.0,0.00017942,2]
[363767015,1748866244699,-500.0,0.00017942,2]
[363767017,1748866244709,-500.0,0.00017942,2]
[363767019,1748866244719,-176.45806439,0.00017942,2]
[363767021,1748866244730,-151.0,0.00017942,2]
[363767023,1748866244739,-151.0,0.00017942,2]
[363767025,1748866244748,-500.0,0.00017942,2]
[363767027,1748866244758,-500.0,0.00017942,2]
[363767029,1748866244768,-172.41531002,0.00017942,2]
[363767031,1748866244777,-500.0,0.00017942,2]
[363767033,1748866244786,-370.84,0.00017945,3]
[363767034,1748866244796,-430.0,0.00017953,2]
[363767037,1748866244806,-430.0,0.00017953,2]
[363767038,1748866244814,-1320.38,0.00017953,2]
[363767041,1748866244824,-430.0,0.00017953,2]
[363767043,1748866244834,-471.17,0.00017953,2]
[363767045,1748866244844,-3118.67,0.00017953,2]
[363767047,1748866244853,-430.0,0.00017954,2]
[363767049,1748866244863,-430.0,0.00017954,2]
[363767051,1748866244872,-430.0,0.00017954,2]
[363767053,1748866244882,-4901.09,0.00017954,2]
[363767055,1748866244892,-430.0,0.00017954,2]
[363767057,1748866244901,-430.0,0.00017954,2]
[363767059,1748866244910,-430.0,0.00017954,2]
[363767061,1748866244921,-4129.7,0.00017954,2]
[363767063,1748866244930,-430.0,0.00017954,2]
[363767065,1748866244939,-2242.45,0.00017954,2]
[363767067,1748866244947,-2191.02,0.00017954,2]
[363767069,1748866244954,-430.0,0.00017954,2]
[363767071,1748866244960,-430.0,0.00017954,2]
[363767073,1748866244970,-430.0,0.00017954,2]
[363767075,1748866244980,-785.05,0.00017954,2]
[363767077,1748866244989,-430.0,0.00017954,2]
[363767079,1748866245000,-430.0,0.00017954,2]
[363767081,1748866245009,-430.0,0.00017954,2]
[363767083,1748866245019,-619.3,0.00017954,2]
[363767085,1748866245028,-430.0,0.00017954,2]
[363767087,1748866245037,-1156.79,0.00017954,2]
[363767089,1748866245050,-430.0,0.00017954,2]
[363767091,1748866245059,-430.0,0.00017954,2]
[363767093,1748866245069,-430.0,0.00017954,2]
[363767095,1748866245078,-151.0,0.00017954,2]
[363767097,1748866245089,-736.37,0.00017954,2]
[363767099,1748866245099,-1180.67,0.00017954,2]
[363767101,1748866245108,-430.0,0.00017954,2]
[363767103,1748866245117,-430.0,0.00017954,2]
[363767104,1748866245128,-430.0,0.00017954,2]
[363767106,1748866245138,-3770.39,0.00017954,2]
[363767109,1748866245149,-430.0,0.00017954,2]
[363767110,1748866245159,-510.0,0.00017954,2]
[363767113,1748866245169,-430.0,0.00017954,2]
[363767115,1748866245178,-191.65472452,0.00017954,2]
[363767117,1748866245188,-712.54,0.00017954,2]
[363767118,1748866245196,-430.0,0.00017954,2]
[363767120,1748866245205,-461.65,0.00017954,2]
[363767123,1748866245216,-430.0,0.00017954,2]
[363767125,1748866245227,-430.0,0.00017954,2]
[363767126,1748866245237,-513.8,0.00017954,2]
[363767128,1748866245247,-1174.27,0.00017954,2]
[363767131,1748866245257,-352.29084144,0.00017954,2]
[363767133,1748866245267,-430.0,0.00017954,2]
[363767135,1748866245276,-2890.69,0.00017954,2]
[363767137,1748866245285,-430.0,0.00017954,2]
[363767146,1748866245328,-1218.79789637,0.00017955,2]
[363767149,1748866245381,-430.0,0.00017955,2]
[363767151,1748866245390,-430.0,0.00017955,2]
[363767152,1748866245399,-430.0,0.00017955,2]
[363767154,1748866245409,-430.0,0.00017955,2]
[363767156,1748866245418,-430.0,0.00017955,2]
[363767158,1748866245428,-430.0,0.00017955,2]
[363767160,1748866245439,-949.56,0.00017955,2]
[363767162,1748866245448,-430.0,0.00017955,2]
[363767165,1748866245458,-430.0,0.00017955,2]
[363767166,1748866245467,-430.0,0.00017955,2]
[363767169,1748866245477,-430.0,0.00017955,2]
[363767171,1748866245486,-1065.04,0.00017955,2]
[363767173,1748866245495,-430.0,0.00017955,2]
[363767174,1748866245504,-7394.04,0.00017955,2]
[363767177,1748866245514,-1541.52,0.00017955,2]
[363767178,1748866245524,-1130.52,0.00017955,2]
[363767181,1748866245535,-430.0,0.00017955,2]
[363767183,1748866245552,-430.0,0.00017955,2]
[363767186,1748866245566,-867.55,0.00017955,2]
[363767188,1748866245577,-4395.71,0.00017955,2]
[363767190,1748866245588,-1146.56,0.00017955,2]
[363767192,1748866245599,-430.0,0.00017955,2]
[363767194,1748866245610,-430.0,0.00017955,2]
[363767196,1748866245621,-439.19,0.00017955,2]
[363767199,1748866245631,-430.0,0.00017956,2]
[363767201,1748866245642,-430.0,0.00017956,2]
[363767203,1748866245652,-430.0,0.00017956,2]
[363767205,1748866245663,-430.0,0.00017956,2]
[363767207,1748866245673,-452.32,0.00017956,2]
[363767209,1748866245683,-228.11879478,0.00017956,2]
[363767211,1748866245694,-193.985419,0.00017959,2]
[363767213,1748866245704,-193.985419,0.00017959,2]
[363767215,1748866245714,-151.0,0.00017969,2]
[363767217,1748866245725,-221.755081,0.00017969,2]
[363767219,1748866245735,-446.70478284,0.00017969,2]
[363767221,1748866245745,-500.0,0.00017969,2]
[363767223,1748866245755,-500.0,0.00017969,2]
[363767225,1748866245765,-500.0,0.00017969,2]
[363767227,1748866245775,-500.0,0.00017969,2]
[363767229,1748866245785,-500.0,0.00017969,2]
[363767231,1748866245795,-203.56453287,0.00017969,2]
[363767233,1748866245806,-280.68865117,0.00017969,2]
[363767236,1748866245816,-500.0,0.00017969,2]
[363767238,1748866245826,-500.0,0.00017969,2]
[363767240,1748866245837,-500.0,0.00017969,2]
[363767242,1748866245847,-151.0,0.00017995,2]
[363767244,1748866245857,-234.05854566,0.00017997,2]
[363767246,1748866245867,-500.0,0.00017997,2]
[363767248,1748866245877,-500.0,0.00017997,2]
[363767250,1748866245887,-500.0,0.00017997,2]
[363767252,1748866245897,-537.42740137,0.00017997,2]
[363767254,1748866245908,-182.4732435,0.00017997,2]
[363767256,1748866245917,-500.0,0.00017997,2]
[363767258,1748866245927,-500.0,0.00017997,2]
[363767260,1748866245937,-163.09,0.00018,2]
[363767263,1748866245947,-500.0,0.00018024,2]
[363767266,1748866245957,-623.59432424,0.00018024,2]
[363767268,1748866245966,-500.0,0.00018024,2]
[363767270,1748866245976,-500.0,0.00018024,2]
[363767272,1748866245986,-500.0,0.00018024,2]
[363767274,1748866245996,-364.61949671,0.00018031,2]
[363767276,1748866246006,-1000.0,0.00018031,2]
[363767278,1748866246016,-1000.0,0.00018031,2]
[363767280,1748866246026,-500.0,0.00018051,2]
[363767282,1748866246036,-270.72096678,0.00018051,2]
[363767284,1748866246050,-500.0,0.00018051,2]
[363767287,1748866246061,-500.0,0.00018051,2]
[363767290,1748866246071,-500.0,0.00018079,2]
[363767294,1748866246081,-500.0,0.00018079,2]
[363767296,1748866246091,-500.0,0.00018079,2]
[363767298,1748866246101,-151.0,0.000181,2]
[363767300,1748866246111,-269.0,0.00018106,2]
[363767302,1748866246121,-500.0,0.00018106,2]
[363767304,1748866246131,-500.0,0.00018106,2]
[363767306,1748866246140,-7034.19338387,0.00018107,2]
[363767308,1748866246151,-420.0,0.00018119,2]
[363767310,1748866246161,-420.0,0.00018119,2]
[363767312,1748866246171,-1523.1485482,0.00018129,2]
[363767314,1748866246181,-500.0,0.00018134,2]
[363767316,1748866246191,-500.0,0.00018134,2]
[363767318,1748866246200,-500.0,0.00018161,2]
[363767320,1748866246210,-500.0,0.00018161,2]
[363767323,1748866246220,-1000.0,0.00018174,2]
[363767325,1748866246229,-1000.0,0.00018176,7]
[363767327,1748866246239,-1000.0,0.00018176,7]
[363767329,1748866246248,-500.0,0.00018188,2]
[363767331,1748866246258,-500.0,0.00018188,2]
[363767333,1748866246269,-1680.0,0.00018201,2]
[363767335,1748866246279,-496.43279199,0.00018203,2]
[363767337,1748866246288,-500.0,0.00018216,2]
[363767339,1748866246298,-500.0,0.00018216,2]
[363767341,1748866246309,-430.0,0.00018227,2]
[363767343,1748866246320,-430.0,0.00018227,2]
[363767345,1748866246329,-1320.38,0.00018227,2]
[363767347,1748866246339,-430.0,0.00018227,2]
[363767349,1748866246348,-471.17,0.00018227,2]
[363767351,1748866246359,-3118.67,0.00018227,2]
[363767353,1748866246368,-430.0,0.00018228,2]
[363767355,1748866246379,-430.0,0.00018228,2]
[363767357,1748866246389,-4901.09,0.00018228,2]
[363767359,1748866246399,-430.0,0.00018228,2]
[363767361,1748866246409,-430.0,0.00018228,2]
[363767363,1748866246419,-4129.7,0.00018228,2]
[363767365,1748866246429,-2242.45,0.00018228,2]
[363767366,1748866246439,-2191.02,0.00018228,2]
[363767367,1748866246449,-430.0,0.00018228,2]
[363767368,1748866246459,-430.0,0.00018228,2]
[363767369,1748866246469,-785.05,0.00018228,2]
[363767370,1748866246479,-430.0,0.00018228,2]
[363767371,1748866246489,-430.0,0.00018228,2]
[363767372,1748866246499,-430.0,0.00018228,2]
[363767373,1748866246509,-619.3,0.00018228,2]
[363767374,1748866246520,-430.0,0.00018228,2]
[363767375,1748866246529,-1156.79,0.00018228,2]
[363767376,1748866246540,-430.0,0.00018228,2]
[363767377,1748866246550,-430.0,0.00018228,2]
[363767378,1748866246561,-430.0,0.00018228,2]
[363767379,1748866246571,-736.37,0.00018228,2]
[363767380,1748866246582,-1180.67,0.00018228,2]
[363767382,1748866246592,-430.0,0.00018228,2]
[363767384,1748866246602,-3770.39,0.00018228,2]
[363767386,1748866246613,-430.0,0.00018228,2]
[363767388,1748866246623,-430.0,0.00018228,2]
[363767390,1748866246633,-712.54,0.00018228,2]
[363767392,1748866246643,-430.0,0.00018228,2]
[363767394,1748866246654,-461.65,0.00018228,2]
[363767396,1748866246664,-430.0,0.00018228,2]
[363767398,1748866246674,-430.0,0.00018228,2]
[363767400,1748866246684,-513.8,0.00018228,2]
[363767402,1748866246694,-1174.27,0.00018228,2]
[363767404,1748866246703,-2890.69,0.00018228,2]
[363767406,1748866246712,-430.0,0.00018228,2]
[363767408,1748866246722,-430.0,0.00018228,2]
[363767410,1748866246732,-430.0,0.00018229,2]
[363767412,1748866246741,-430.0,0.00018229,2]
[363767424,1748866246847,-430.0,0.00018229,2]
[363767426,1748866246857,-430.0,0.00018229,2]
[363767428,1748866246868,-949.56,0.00018229,2]
[363767430,1748866246877,-430.0,0.00018229,2]
[363767432,1748866246887,-430.0,0.00018229,2]
[363767434,1748866246897,-430.0,0.00018229,2]
[363767436,1748866246906,-430.0,0.00018229,2]
[363767438,1748866246915,-1065.04,0.00018229,2]
[363767440,1748866246925,-151.0,0.00018229,2]
[363767441,1748866246934,-430.0,0.00018229,2]
[363767443,1748866246944,-7394.04,0.00018229,2]
[363767446,1748866246954,-151.0,0.00018229,2]
[363767449,1748866246964,-1541.52,0.00018229,2]
[363767452,1748866246975,-1130.52,0.00018229,2]
[363767454,1748866246984,-430.0,0.00018229,2]
[363767456,1748866246994,-430.0,0.00018229,2]
[363767458,1748866247004,-867.55,0.00018229,2]
[363767460,1748866247013,-4395.71,0.00018229,2]
[363767462,1748866247023,-1146.56,0.00018229,2]
[363767464,1748866247032,-430.0,0.00018229,2]
[363767466,1748866247043,-430.0,0.00018229,2]
[363767468,1748866247057,-439.19,0.00018229,2]
[363767470,1748866247067,-430.0,0.0001823,2]
[363767472,1748866247077,-430.0,0.0001823,2]
[363767474,1748866247087,-346.72314585,0.0001823,2]
[363767476,1748866247097,-452.32,0.0001823,2]
[363767478,1748866247106,-259.041881,0.00018233,2]
[363767480,1748866247116,-151.0,0.00018233,2]
[363767482,1748866247126,-151.0,0.00018233,2]
[363767484,1748866247136,-439.55,0.00018235,2]
[363767486,1748866247145,-1500.0,0.00018236,2]
[363767488,1748866247155,-1452.25893078,0.00018236,2]
[363767490,1748866247165,-536.04664707,0.00018238,2]
[363767492,1748866247175,-500.0,0.00018243,2]
[363767494,1748866247186,-500.0,0.00018243,2]
[363767496,1748866247196,-500.0,0.00018249,2]
[363767498,1748866247207,-503.93294425,0.00018249,2]
[363767500,1748866247218,-500.0,0.00018271,2]
[363767503,1748866247229,-500.0,0.00018271,2]
[363767504,1748866247239,-500.0,0.00018298,2]
[363767507,1748866247248,-500.0,0.00018325,2]
[363767509,1748866247259,-7034.19338387,0.00018348,2]
[363767511,1748866247269,-1500.0,0.0001835,2]
[363767513,1748866247279,-435.52355721,0.0001835,2]
[363767514,1748866247289,-500.0,0.00018353,2]
[363767516,1748866247299,-500.0,0.0001838,2]
[363767519,1748866247310,-422.47185108,0.00018408,2]
[363767520,1748866247320,-568.49248736,0.00018479,2]
[363767522,1748866247330,-180.03780794,0.00018485,2]
[363767525,1748866247340,-151.0,0.000185,2]
[363767526,1748866247349,-430.0,0.00018501,2]
[363767528,1748866247359,-430.0,0.00018501,2]
[363767531,1748866247369,-1320.38,0.00018501,2]
[363767533,1748866247379,-430.0,0.00018501,2]
[363767535,1748866247389,-471.17,0.00018501,2]
[363767537,1748866247399,-3118.67,0.00018501,2]
[363767539,1748866247408,-430.0,0.00018502,2]
[363767541,1748866247417,-516.12927608,0.00018502,2]
[363767542,1748866247427,-4901.09,0.00018502,2]
[363767544,1748866247437,-430.0,0.00018502,2]
[363767546,1748866247446,-430.0,0.00018502,2]
[363767548,1748866247456,-4129.7,0.00018502,2]
[363767550,1748866247466,-2242.45,0.00018502,2]
[363767552,1748866247475,-2191.02,0.00018502,2]
[363767555,1748866247485,-430.0,0.00018502,2]
[363767557,1748866247495,-430.0,0.00018502,2]
[363767559,1748866247504,-785.05,0.00018502,2]
[363767560,1748866247513,-430.0,0.00018502,2]
[363767562,1748866247523,-430.0,0.00018502,2]
[363767565,1748866247532,-619.3,0.00018502,2]
[363767567,1748866247543,-430.0,0.00018502,2]
[363767569,1748866247553,-1156.79,0.00018502,2]
[363767571,1748866247563,-430.0,0.00018502,2]
[363767573,1748866247573,-539.44891595,0.00018502,2]
[363767575,1748866247584,-430.0,0.00018502,2]
[363767577,1748866247594,-152.087997,0.00018502,2]
[363767579,1748866247603,-736.37,0.00018502,2]
[363767581,1748866247612,-1180.67,0.00018502,2]
[363767583,1748866247622,-3770.39,0.00018502,2]
[363767584,1748866247632,-430.0,0.00018502,2]
[363767586,1748866247641,-430.0,0.00018502,2]
[363767588,1748866247651,-712.54,0.00018502,2]
[363767590,1748866247661,-430.0,0.00018502,2]
[363767592,1748866247670,-461.65,0.00018502,2]
[363767594,1748866247679,-430.0,0.00018502,2]
[363767596,1748866247689,-430.0,0.00018502,2]
[363767598,1748866247698,-513.8,0.00018502,2]
[363767600,1748866247707,-1174.27,0.00018502,2]
[363767602,1748866247717,-2890.69,0.00018502,2]
[363767604,1748866247726,-430.0,0.00018502,2]
[363767606,1748866247736,-430.0,0.00018502,2]
[363767608,1748866247746,-430.0,0.00018503,2]
[363767610,1748866247755,-430.0,0.00018503,2]
[363767612,1748866247768,-430.0,0.00018503,2]
[363767614,1748866247778,-430.0,0.00018503,2]
[363767616,1748866247787,-151.0,0.00018503,2]
[363767618,1748866247797,-949.56,0.00018503,2]
[363767620,1748866247808,-454.07702833,0.00018503,2]
[363767622,1748866247817,-430.0,0.00018503,2]
[363767624,1748866247827,-430.0,0.00018503,2]
[363767626,1748866247837,-430.0,0.00018503,2]
[363767628,1748866247847,-1065.04,0.00018503,2]
[363767630,1748866247858,-430.0,0.00018503,2]
[363767632,1748866247867,-7394.04,0.00018503,2]
[363767634,1748866247878,-1541.52,0.00018503,2]
[363767636,1748866247889,-1130.52,0.00018503,2]
[363767638,1748866247899,-430.0,0.00018503,2]
[363767640,1748866247909,-430.0,0.00018503,2]
[363767642,1748866247920,-867.55,0.00018503,2]
[363767644,1748866247930,-4395.71,0.00018503,2]
[363767646,1748866247940,-151.0,0.00018503,2]
[363767648,1748866247950,-151.0,0.00018503,2]
[363767650,1748866247960,-1146.56,0.00018503,2]
[363767652,1748866247970,-430.0,0.00018503,2]
[363767654,1748866247980,-430.0,0.00018503,2]
[363767656,1748866247990,-439.19,0.00018503,2]
[363767658,1748866248000,-430.0,0.00018504,2]
[363767660,1748866248010,-430.0,0.00018504,2]
[363767662,1748866248019,-452.32,0.00018504,2]
[363767665,1748866248029,-847.61251883,0.00018504,2]
[363767666,1748866248039,-193.985419,0.00018506,2]
[363767668,1748866248052,-193.985419,0.00018506,2]
[363767670,1748866248063,-151.0,0.00018509,2]
[363767672,1748866248074,-552.75204993,0.00018509,2]
[363767674,1748866248084,-500.0,0.00018509,2]
[363767684,1748866248167,-552.75204993,0.00018509,2]
[363767686,1748866248178,-552.75204993,0.00018509,2]
[363767688,1748866248188,-500.0,0.00018509,2]
[363767690,1748866248197,-552.75204993,0.00018509,2]
[363767692,1748866248208,-552.75204993,0.00018509,2]
[363767694,1748866248218,-500.0,0.00018509,2]
[363767696,1748866248227,-552.75204993,0.00018509,2]
[363767698,1748866248237,-552.75204993,0.00018509,2]
[363767700,1748866248246,-552.75204993,0.00018509,2]
[363767701,1748866248256,-552.75204993,0.00018509,2]
[363767704,1748866248266,-552.75204993,0.00018509,2]
[363767706,1748866248276,-552.75204993,0.00018509,2]
[363767708,1748866248286,-500.0,0.00018509,2]
[363767709,1748866248296,-155.964,0.00018545,2]
[363767711,1748866248306,-1000.0,0.00018579,2]
[363767713,1748866248317,-183.48147604,0.00018588,2]
[363767716,1748866248327,-7034.19338387,0.0001859,2]
[363767718,1748866248338,-151.0,0.000186,2]
[363767720,1748866248348,-1523.1485482,0.00018676,2]
[363767722,1748866248357,-430.0,0.00018775,2]
[363767724,1748866248367,-430.0,0.00018775,2]
[363767726,1748866248377,-1320.38,0.00018775,2]
[363767728,1748866248386,-430.0,0.00018775,2]
[363767730,1748866248396,-471.17,0.00018775,2]
[363767732,1748866248406,-3118.67,0.00018775,2]
[363767734,1748866248415,-430.0,0.00018776,2]
[363767736,1748866248427,-4901.09,0.00018776,2]
[363767738,1748866248437,-430.0,0.00018776,2]
[363767740,1748866248447,-430.0,0.00018776,2]
[363767742,1748866248457,-4129.7,0.00018776,2]
[363767744,1748866248468,-2242.45,0.00018776,2]
[363767746,1748866248479,-2191.02,0.00018776,2]
[363767748,1748866248488,-430.0,0.00018776,2]
[363767750,1748866248498,-430.0,0.00018776,2]
[363767752,1748866248509,-785.05,0.00018776,2]
[363767754,1748866248519,-430.0,0.00018776,2]
[363767756,1748866248528,-430.0,0.00018776,2]
[363767758,1748866248538,-619.3,0.00018776,2]
[363767760,1748866248549,-1156.79,0.00018776,2]
[363767762,1748866248562,-430.0,0.00018776,2]
[363767764,1748866248572,-430.0,0.00018776,2]
[363767766,1748866248584,-736.37,0.00018776,2]
[363767768,1748866248594,-1180.67,0.00018776,2]
[363767770,1748866248604,-3770.39,0.00018776,2]
[363767772,1748866248614,-430.0,0.00018776,2]
[363767774,1748866248625,-430.0,0.00018776,2]
[363767776,1748866248635,-712.54,0.00018776,2]
[363767778,1748866248645,-430.0,0.00018776,2]
[363767780,1748866248655,-461.65,0.00018776,2]
[363767782,1748866248664,-430.0,0.00018776,2]
[363767784,1748866248674,-430.0,0.00018776,2]
[363767786,1748866248685,-513.8,0.00018776,2]
[363767788,1748866248695,-1174.27,0.00018776,2]
[363767790,1748866248705,-2890.69,0.00018776,2]
[363767792,1748866248715,-430.0,0.00018776,2]
[363767794,1748866248725,-430.0,0.00018776,2]
[363767796,1748866248735,-430.0,0.00018777,2]
[363767798,1748866248745,-430.0,0.00018777,2]
[363767800,1748866248755,-949.56,0.00018777,2]
[363767802,1748866248765,-430.0,0.00018777,2]
[363767804,1748866248775,-430.0,0.00018777,2]
[363767806,1748866248786,-430.0,0.00018777,2]
[363767809,1748866248797,-1065.04,0.00018777,2]
[363767811,1748866248808,-430.0,0.00018777,2]
[363767812,1748866248818,-7394.04,0.00018777,2]
[363767815,1748866248828,-1541.52,0.00018777,2]
[363767817,1748866248838,-1130.52,0.00018777,2]
[363767818,1748866248848,-166.15867229,0.00018777,2]
[363767820,1748866248858,-430.0,0.00018777,2]
[363767822,1748866248868,-867.55,0.00018777,2]
[363767825,1748866248879,-4395.71,0.00018777,2]
[363767827,1748866248889,-1146.56,0.00018777,2]
[363767829,1748866248899,-430.0,0.00018777,2]
[363767831,1748866248910,-439.19,0.00018777,2]
[363767833,1748866248920,-266.0917678,0.00018778,2]
[363767835,1748866248929,-315.1691698,0.00018778,2]
[363767836,1748866248936,-452.32,0.00018778,2]
[363767838,1748866248944,-151.0,0.00018778,2]
[363767840,1748866248953,-505.52707264,0.00018784,2]
[363767842,1748866248962,-151.0,0.000188,2]
[363767845,1748866248972,-631.19582775,0.00018823,2]
[363767846,1748866248982,-7034.19338387,0.00018831,2]
[363767848,1748866248993,-151.0,0.00018831,9]
[363767850,1748866249003,-151.0,0.0001887,2]
[363767852,1748866249014,-500.0,0.0001887,2]
[363767855,1748866249024,-500.0,0.0001887,2]
[363767857,1748866249035,-500.0,0.0001887,2]
[363767858,1748866249048,-207.4,0.0001887,2]
[363767860,1748866249060,-632.79567003,0.0001887,2]
[363767862,1748866249070,-5000.0,0.0001887,2]
[363767865,1748866249081,-500.0,0.0001887,2]
[363767866,1748866249091,-500.0,0.0001887,2]
[363767868,1748866249101,-500.0,0.0001887,2]
[363767870,1748866249111,-500.0,0.0001887,2]
[363767872,1748866249123,-500.0,0.0001887,2]
[363767874,1748866249133,-500.0,0.0001887,2]
[363767877,1748866249143,-500.0,0.0001887,2]
[363767879,1748866249153,-500.0,0.0001887,2]
[363767881,1748866249163,-500.0,0.0001887,2]
[363767883,1748866249175,-5000.0,0.00018874,2]
[363767885,1748866249185,-2000.0,0.00018898,2]
[363767887,1748866249196,-151.0,0.000189,2]
[363767889,1748866249206,-2492.00168756,0.000189,2]
[363767891,1748866249216,-2400.0,0.00019033,2]
[363767893,1748866249227,-430.0,0.00019049,2]
[363767895,1748866249237,-430.0,0.00019049,2]
[363767897,1748866249247,-1320.38,0.00019049,2]
[363767899,1748866249258,-430.0,0.00019049,2]
[363767901,1748866249268,-471.17,0.00019049,2]
[363767903,1748866249278,-3118.67,0.00019049,2]
[363767905,1748866249288,-255.9063081,0.0001905,2]
[363767907,1748866249299,-4901.09,0.0001905,2]
[363767909,1748866249309,-430.0,0.0001905,2]
[363767910,1748866249319,-430.0,0.0001905,2]
[363767913,1748866249330,-4129.7,0.0001905,2]
[363767921,1748866249410,-2242.45,0.0001905,2]
[363767923,1748866249420,-2191.02,0.0001905,2]
[363767925,1748866249430,-151.0,0.0001905,2]
[363767927,1748866249440,-430.0,0.0001905,2]
[363767929,1748866249450,-430.0,0.0001905,2]
[363767931,1748866249460,-785.05,0.0001905,2]
[363767933,1748866249469,-430.0,0.0001905,2]
[363767936,1748866249480,-430.0,0.0001905,2]
[363767937,1748866249490,-619.3,0.0001905,2]
[363767939,1748866249501,-1156.79,0.0001905,2]
[363767941,1748866249512,-430.0,0.0001905,2]
[363767943,1748866249523,-430.0,0.0001905,2]
[363767946,1748866249534,-736.37,0.0001905,2]
[363767948,1748866249544,-1180.67,0.0001905,2]
[363767950,1748866249560,-3770.39,0.0001905,2]
[363767952,1748866249571,-430.0,0.0001905,2]
[363767954,1748866249583,-430.0,0.0001905,2]
[363767956,1748866249593,-712.54,0.0001905,2]
[363767957,1748866249603,-461.65,0.0001905,2]
[363767960,1748866249614,-416.28537315,0.0001905,2]
[363767961,1748866249624,-430.0,0.0001905,2]
[363767962,1748866249636,-513.8,0.0001905,2]
[363767963,1748866249646,-1174.27,0.0001905,2]
[363767964,1748866249657,-2890.69,0.0001905,2]
[363767965,1748866249668,-430.0,0.0001905,2]
[363767966,1748866249678,-430.0,0.0001905,2]
[363767967,1748866249688,-430.0,0.00019051,2]
[363767968,1748866249698,-430.0,0.00019051,2]
[363767969,1748866249707,-949.56,0.00019051,2]
[363767970,1748866249717,-430.0,0.00019051,2]
[363767971,1748866249727,-430.0,0.00019051,2]
[363767972,1748866249738,-430.0,0.00019051,2]
[363767973,1748866249748,-1065.04,0.00019051,2]
[363767974,1748866249759,-430.0,0.00019051,2]
[363767975,1748866249768,-7394.04,0.00019051,2]
[363767977,1748866249779,-1541.52,0.00019051,2]
[363767979,1748866249789,-1130.52,0.00019051,2]
[363767980,1748866249800,-430.0,0.00019051,2]
[363767982,1748866249814,-867.55,0.00019051,2]
[363767985,1748866249824,-4395.71,0.00019051,2]
[363767987,1748866249834,-1146.56,0.00019051,2]
[363767988,1748866249844,-430.0,0.00019051,2]
[363767990,1748866249855,-439.19,0.00019051,2]
[363767992,1748866249866,-452.32,0.00019052,2]
[363767994,1748866249877,-151.0,0.00019055,2]
[363767996,1748866249887,-151.0,0.00019055,2]
[363767998,1748866249898,-7034.19338387,0.00019072,2]
[363768001,1748866249909,-879.09,0.00019103,2]
[363768002,1748866249918,-631.19582775,0.00019132,2]
[363768004,1748866249926,-193.985419,0.00019141,2]
[363768006,1748866249936,-193.985419,0.00019141,2]
[363768008,1748866249946,-151.0,0.00019159,10]
[363768010,1748866249956,-500.0,0.00019178,2]
[363768013,1748866249976,-500.0,0.00019178,2]
[363768016,1748866249995,-500.0,0.00019178,2]
[363768019,1748866250016,-500.0,0.00019178,2]
[363768023,1748866250036,-500.0,0.00019178,2]
[363768025,1748866250058,-500.0,0.00019178,2]
[363768028,1748866250077,-500.0,0.00019178,2]
[363768031,1748866250096,-151.0,0.00019178,2]
[363768034,1748866250111,-316.863654,0.00019178,2]